lending/lending_fUSD_20240610
["ID","MTS","AMOUNT","RATE_DAILY","PERIOD"]
[328993456,1718046653402,-500.0,0.00029488,4]
[328993457,1718046653414,-55391.36575721,0.00029489,13]
[328993458,1718046653424,-42151.64008722,0.00029489,2]
[328993459,1718046667563,1358.49416162,9.029e-05,2]
[328993460,1718046702792,12180.84408897,9.029e-05,2]
[328993461,1718046736707,880.59733829,9.029e-05,2]
[328993462,1718046738903,53115.0145113,9.029e-05,2]
[328993463,1718046738938,27235.04439912,9.029e-05,2]
[328993464,1718046762367,8387.93071117,9.029e-05,2]
[328993465,1718046778837,551.33947708,0.0001,2]
[328993475,1718047594439,15413.53919903,0.0001,2]
[328993476,1718047642146,-187.11799478,0.00014761,2]
[328993488,1718047833307,-365.45085217,0.00014754,2]
[328993489,1718047833317,-106.65714782,0.00014754,2]
[328993490,1718047833329,-539.17664531,0.00014754,2]
[328993491,1718047833339,-269.27123607,0.00014754,2]
[328993492,1718047833351,-1067.75598538,0.00014755,2]
[328993493,1718047833361,-9221.0951137,0.00014755,2]
[328993494,1718047833371,-150.0,0.00014756,2]
[328993495,1718047833381,-625.39790229,0.00014762,2]
[328993496,1718047833391,-429.53862842,0.00014763,2]
[328993497,1718047833401,-192.18649808,0.00014763,2]
[328993498,1718047833411,-155.0,0.00014763,2]
[328993499,1718047833421,-16994.63242063,0.00014764,2]
[328993500,1718047833431,-789.85625231,0.00014765,2]
[328993501,1718047833442,-161.67133303,0.00014768,2]
[328993502,1718047833451,-1969.36805987,0.00014988,2]
[328993503,1718047833462,-1165.98853483,0.0001499,2]
[328993504,1718047833534,-0.05328904,0.0001499,2]
[328993505,1718047833969,-6382.32295873,0.0001499,2]
[328993506,1718047833980,-499.99,0.0001499,2]
[328993507,1718047833989,-499.99,0.0001499,2]
[328993508,1718047833999,-210.0,0.00016232,2]
[328993509,1718047834009,-1298.04,0.0001726,2]
[328993510,1718047834019,-5484.71224127,0.000226,5]
[328993529,1718047843975,-203.22,0.00022595,2]
[328993532,1718047843985,-2293.0,0.000226,5]
[328993534,1718047843995,-3735.085,0.00023779,2]
[328993535,1718047844005,-432.26,0.00023856,2]
[328993536,1718047844015,-276.88,0.00024384,2]
[328993538,1718047844025,-155.22,0.00024384,2]
[328993539,1718047844035,-2320.79303534,0.00024633,2]
[328993541,1718047844047,-430.20696466,0.00024633,2]
[328993542,1718047844056,-250.0,0.00024893,2]
[328993543,1718047844066,-202.19,0.00024998,2]
[328993544,1718047844076,-706.630092,0.00025,2]
[328993545,1718047844088,-259.78,0.00025077,2]
[328993546,1718047844097,-172.15,0.00025269,2]
[328993547,1718047844106,-161.16,0.00025276,2]
[328993548,1718047844116,-172.15,0.00025338,2]
[328993549,1718047844127,-150.0,0.00025345,2]
[328993550,1718047844136,-172.15,0.00025407,2]
[328993551,1718047844146,-250.0,0.00025456,2]
[328993552,1718047844156,-172.15,0.00025477,2]
[328993553,1718047844165,-172.15,0.00025546,2]
[328993554,1718047844174,-172.15,0.00025615,2]
[328993555,1718047844184,-200.0,0.00025643,2]
[328993556,1718047844192,-172.15,0.00025685,2]
[328993557,1718047844202,-172.15,0.00025754,2]
[328993558,1718047844211,-236.38794333,0.00025776,2]
[328993559,1718047844223,-953.54276351,0.00025776,2]
[328993560,1718047844235,-696.43,0.00025776,2]
[328993561,1718047844667,-4586.43134741,0.00025776,2]
[328993567,1718047844717,-418.693336,0.00025776,2]
[328993569,1718047844727,-66.60666395,0.00025786,2]
[328993571,1718047844739,-709.17,0.00025786,2]
[328993574,1718047844751,-312.3160075,0.00025786,2]
[328993577,1718047844762,-22801.90732855,0.00025786,2]
[328993579,1718047844772,-172.15,0.00025823,2]
[328993580,1718047844781,-157.8,0.00025853,2]
[328993582,1718047844790,-172.15,0.00025893,2]
[328993583,1718047844800,-250.0,0.00025918,2]
[328993584,1718047844810,-172.15,0.00025962,2]
[328993585,1718047844819,-1875.0,0.00026,2]
[328993586,1718047844831,-201.352535,0.00026,2]
[328993587,1718047844841,-150.0,0.00026026,2]
[328993588,1718047844850,-172.15,0.00026031,2]
[328993589,1718047844861,-154.50041714,0.00026052,2]
[328993590,1718047844871,-160.65767632,0.00026055,2]
[328993591,1718047844881,-172.15,0.00026101,2]
[328993592,1718047844896,-154.77207114,0.0002611,2]
[328993593,1718047844907,-438.69792886,0.0002611,2]
[328993594,1718047844917,-1000.0,0.0002611,2]
[328993595,1718047844927,-155.27119715,0.00026111,2]
[328993596,1718047844937,-432.26,0.0002612,2]
[328993597,1718047844946,-172.15,0.0002617,2]
[328993598,1718047844956,-153.4147153,0.00026212,2]
[328993599,1718047844965,-172.15,0.00026239,2]
[328993600,1718047844975,-878.77,0.00026301,3]
[328993601,1718047844984,-172.15,0.00026309,2]
[328993602,1718047844993,-172.15,0.00026378,2]
[328993603,1718047845003,-154.50041714,0.00026409,2]
[328993604,1718047845012,-172.15,0.00026447,2]
[328993605,1718047845022,-4465.10734294,0.000265,2]
[328993606,1718047845034,-370.88331345,0.000265,2]
[328993607,1718047845046,-866.3071139,0.000265,2]
[328993608,1718047845057,-701.11,0.000265,2]
[328993609,1718047845068,-3162.78465236,0.000265,2]
[328993610,1718047845377,-456.47690819,0.00017259,2]
[328993611,1718047845387,-20020.89972897,0.000265,2]
[328993612,1718047845396,-172.15,0.00026516,2]
[328993613,1718047845406,-1102.59,0.00026535,2]
[328993614,1718047845415,-151.0,0.00026577,7]
[328993615,1718047845424,-172.15,0.00026586,2]
[328993616,1718047845436,-156.52660351,0.00026683,2]
[328993617,1718047845445,-584.97272385,0.00026698,2]
[328993618,1718047845455,-163.23955743,0.00026748,2]
[328993619,1718047845464,-163.23955743,0.00026762,2]
[328993620,1718047845474,-154.50041714,0.00026942,2]
[328993621,1718047845484,-163.23955743,0.0002696,2]
[328993622,1718047845493,-163.23955743,0.00026969,2]
[328993623,1718047845503,-703.08238352,0.00026998,2]
[328993624,1718047845512,-163.01614489,0.00027033,2]
[328993625,1718047845521,-196.509235,0.00027119,2]
[328993626,1718047845531,-285.59063,0.00027119,2]
[328993627,1718047845541,-196.509235,0.00027119,2]
[328993629,1718047845550,-154.50041714,0.00027119,2]
[328993630,1718047845559,-151.0,0.00027119,4]
[328993632,1718047845568,-150.0,0.00027323,2]
[328993634,1718047845578,-2005.8,0.00027397,2]
[328993635,1718047845588,-151.43,0.00027397,2]
[328993636,1718047845597,-196.509235,0.00027458,2]
[328993637,1718047845607,-285.59063,0.00027458,2]
[328993638,1718047845616,-107.0530884,0.00027458,2]
[328993639,1718047845628,-89.4561466,0.00027458,2]
[328993640,1718047845637,-153.4147153,0.0002746,2]
[328993641,1718047845647,-150.0,0.0002757,2]
[328993642,1718047845659,-150.0,0.00027603,2]
[328993643,1718047845669,-151.0,0.00027673,2]
[328993644,1718047845679,-150.0,0.00027772,2]
[328993645,1718047845689,-149.5104001,0.00027797,2]
[328993646,1718047845702,-46.9988349,0.00027797,2]
[328993647,1718047845711,-285.59063,0.00027797,2]
[328993648,1718047845720,-196.509235,0.00027797,2]
[328993649,1718047845730,-150.0,0.00027816,2]
[328993650,1718047845740,-173.55,0.00027882,3]
[328993651,1718047845749,-150.0,0.00027892,2]
[328993652,1718047845759,-150.0,0.00027944,2]
[328993653,1718047845769,-150.0,0.00027974,2]
[328993654,1718047845778,-200.0,0.00028,2]
[328993655,1718047845787,-520.68,0.00028026,3]
[328993656,1718047845797,-150.0,0.00028043,2]
[328993657,1718047845806,-150.0,0.00028062,2]
[328993658,1718047845816,-150.0,0.00028064,2]
[328993659,1718047845825,-156.22202043,0.00028119,2]
[328993660,1718047845834,-196.509235,0.00028136,2]
[328993661,1718047845843,-285.59063,0.00028136,2]
[328993662,1718047845853,-196.509235,0.00028136,2]
[328993663,1718047845863,-150.0,0.00028166,2]
[328993664,1718047845873,-153.85760434,0.00028184,2]
[328993665,1718047845882,-162.22943553,0.00028197,2]
[328993666,1718047845892,-401.58943309,0.00028284,2]
[328993667,1718047845902,-154.50041714,0.00028302,2]
[328993668,1718047845912,-150.0,0.00028303,2]
[328993669,1718047845922,-197.06,0.00028326,2]
[328993670,1718047845932,-4807.17,0.00028331,2]
[328993671,1718047845942,-150.0,0.00028342,2]
[328993672,1718047845951,-150.0,0.00028348,2]
[328993673,1718047845962,-4983.49,0.00028365,2]
[328993674,1718047845972,-432.26,0.00028384,2]
[328993675,1718047845982,-150.0,0.00028397,2]
[328993676,1718047845992,-163.23955743,0.00028406,2]
[328993677,1718047846001,-150.0,0.00028408,2]
[328993678,1718047846011,-153.88436461,0.00028408,2]
[328993679,1718047846021,-150.0,0.00028409,2]
[328993680,1718047846031,-150.0,0.00028441,2]
[328993681,1718047846041,-401.589433,0.00028464,2]
[328993682,1718047846051,-153.4147153,0.00028473,2]
[328993683,1718047846061,-196.509235,0.00028475,2]
[328993684,1718047846071,-285.59063,0.00028475,2]
[328993685,1718047846085,-196.509235,0.00028475,2]
[328993686,1718047846094,-153.4147153,0.00028548,2]
[328993687,1718047846103,-150.0,0.00028565,2]
[328993688,1718047846118,-150.0,0.00028593,2]
[328993689,1718047846129,-401.589433,0.00028643,2]
[328993690,1718047846139,-154.50041714,0.00028652,2]
[328993691,1718047846148,-150.0,0.00028668,2]
[328993692,1718047846160,-150.0,0.00028669,2]
[328993693,1718047846169,-210.0,0.0002869,2]
[328993694,1718047846179,-300.0,0.00028692,2]
[328993695,1718047846189,-150.0,0.00028731,2]
[328993696,1718047846199,-150.0,0.00028778,2]
[328993697,1718047846209,-150.0,0.00028783,2]
[328993698,1718047846218,-150.0,0.0002879,2]
[328993699,1718047846227,-1875.0,0.000288,2]
[328993700,1718047846237,-150.0,0.00028802,2]
[328993701,1718047846247,-1233.1128,0.00028806,2]
[328993702,1718047846256,-2605.20281916,0.00028807,2]
[328993703,1718047846266,-401.589433,0.00028823,2]
[328993704,1718047846275,-97.43650163,0.00028846,2]
[328993717,1718047847639,-1.14756361,0.00017259,2]
[328993718,1718047847652,-6050.25324,0.00017259,2]
[328993719,1718047847664,-1490.40006587,0.00017259,2]
[328993720,1718047847677,-1679.29424422,0.00017259,2]
[328993721,1718047847688,-52.56349837,0.00028846,2]
[328993722,1718047847698,-153.4147153,0.0002885,2]
[328993723,1718047847708,-150.0,0.00028868,2]
[328993724,1718047847717,-150.0,0.00028884,2]
[328993725,1718047847727,-150.0,0.00028893,2]
[328993726,1718047847737,-150.0,0.00028895,2]
[328993727,1718047847747,-300.0,0.00028896,2]
[328993728,1718047847756,-163.23955743,0.00028901,2]
[328993729,1718047847766,-150.0,0.00028905,2]
[328993730,1718047847777,-17393.32317532,0.00028906,10]
[328993731,1718047847789,-2421.69788233,0.00028906,10]
[328993732,1718047847801,-331.13787369,0.00028906,10]
[328993733,1718047847814,-258.45956214,0.00028906,10]
[328993734,1718047847825,-617.58462424,0.00028906,10]
[328993735,1718047847861,-19928.65688228,0.00028906,10]
[328993736,1718047847871,-150.0,0.0002891,2]
[328993737,1718047847880,-150.0,0.00028912,2]
[328993738,1718047847890,-2605.20281909,0.00028928,2]
[328993739,1718047847900,-150.0,0.00028933,2]
[328993740,1718047847910,-150.0,0.00028951,2]
[328993741,1718047847920,-150.0,0.00028952,2]
[328993742,1718047847930,-150.0,0.00028956,2]
[328993743,1718047847940,-150.0,0.00028966,2]
[328993744,1718047847949,-1500.0,0.00028966,2]
[328993745,1718047847959,-150.0,0.00028999,2]
[328993746,1718047847969,-1000.0,0.00029,2]
[328993747,1718047847979,-714.36804046,0.00029,2]
[328993748,1718047847989,-401.589433,0.00029002,15]
[328993749,1718047847999,-150.0,0.00029014,2]
[328993750,1718047848008,-150.0,0.00029014,2]
[328993751,1718047848019,-154.88603374,0.00029026,2]
[328993752,1718047848029,-150.0,0.00029036,2]
[328993753,1718047848040,-535.82650936,0.00029041,4]
[328993754,1718047848050,-2605.20281909,0.0002905,15]
[328993755,1718047848059,-150.0,0.00029052,2]
[328993756,1718047848070,-150.0,0.00029055,2]
[328993757,1718047848082,-150.0,0.00029061,2]
[328993758,1718047848092,-300.0,0.0002907,2]
[328993759,1718047848103,-300.0,0.00029074,2]
[328993760,1718047848113,-150.0,0.00029086,2]
[328993761,1718047848123,-150.0,0.00029087,2]
[328993762,1718047848132,-150.0,0.00029092,2]
[328993763,1718047848142,-300.0,0.00029098,2]
[328993764,1718047848152,-726.0,0.000291,2]
[328993765,1718047848164,-3333.0,0.000291,2]
[328993766,1718047848174,-150.0,0.00029117,2]
[328993767,1718047848184,-150.0,0.00029133,2]
[328993768,1718047848194,-150.0,0.00029139,2]
[328993769,1718047848203,-150.0,0.00029158,2]
[328993770,1718047848213,-150.0,0.0002916,2]
[328993771,1718047848223,-300.0,0.00029166,2]
[328993772,1718047848233,-2605.20281909,0.00029171,15]
[328993773,1718047848242,-150.0,0.00029177,2]
[328993775,1718047848252,-401.589433,0.00029182,15]
[328993776,1718047848261,-150.0,0.00029185,2]
[328993778,1718047848271,-523.79911,0.0002919,2]
[328993780,1718047848280,-150.0,0.00029191,2]
[328993782,1718047848290,-150.0,0.00029203,2]
[328993784,1718047848300,-150.0,0.0002921,2]
[328993786,1718047848310,-300.0,0.00029211,2]
[328993788,1718047848320,-150.0,0.00029212,2]
[328993790,1718047848330,-150.0,0.00029217,2]
[328993792,1718047848340,-300.0,0.00029223,2]
[328993794,1718047848350,-150.0,0.00029227,2]
[328993796,1718047848360,-150.0,0.00029233,2]
[328993798,1718047848370,-1500.0,0.0002924,2]
[328993800,1718047848380,-150.0,0.00029242,2]
[328993801,1718047848391,-347.1,0.00029252,3]
[328993820,1718047848560,-150.0,0.00029254,2]
[328993822,1718047848571,-300.0,0.00029256,2]
[328993823,1718047848581,-150.0,0.00029263,2]
[328993825,1718047848591,-150.0,0.00029268,2]
[328993827,1718047848602,-150.0,0.00029274,23]
[328993829,1718047848614,-1102.59,0.00029275,2]
[328993831,1718047848623,-150.0,0.00029283,2]
[328993833,1718047848633,-150.0,0.00029284,2]
[328993835,1718047848643,-150.0,0.00029285,2]
[328993837,1718047848655,-502.50941325,0.00029286,4]
[328993839,1718047848665,-300.0,0.00029286,2]
[328993841,1718047848675,-83488.9761,0.00029287,2]
[328993843,1718047848686,-472.7231,0.00029287,2]
[328993845,1718047848696,-150.0,0.0002929,2]
[328993847,1718047848706,-1500.0,0.00029292,2]
[328993849,1718047848716,-2605.20281909,0.00029293,15]
[328993851,1718047848726,-150.0,0.00029295,2]
[328993853,1718047848736,-300.0,0.00029295,2]
[328993855,1718047848746,-150.0,0.00029295,2]
[328993857,1718047848756,-1500.0,0.000293,2]
[328993859,1718047848766,-150.0,0.00029306,2]
[328993861,1718047848776,-305.92324424,0.00029308,2]
[328993863,1718047848786,-150.0,0.00029309,2]
[328993865,1718047848796,-150.0,0.00029318,2]
[328993867,1718047848806,-150.0,0.0002932,2]
[328993869,1718047848816,-150.0,0.00029321,2]
[328993871,1718047848827,-448.15573359,0.00029325,2]
[328993873,1718047848837,-154.88603375,0.00029329,2]
[328993875,1718047848847,-150.0,0.0002933,2]
[328993877,1718047848857,-150.0,0.00029335,2]
[328993879,1718047848867,-1500.0,0.00029337,2]
[328993881,1718047848878,-150.0,0.00029346,2]
[328993884,1718047848888,-1500.0,0.00029348,2]
[328993885,1718047848897,-150.0,0.00029357,2]
[328993888,1718047848907,-1500.0,0.00029358,2]
[328993889,1718047848919,-401.589433,0.00029361,15]
[328993892,1718047848929,-150.0,0.00029363,2]
[328993894,1718047848939,-150.0,0.00029367,2]
[328993896,1718047848949,-1000.0,0.00029374,2]
[328993898,1718047848959,-150.0,0.00029383,2]
[328993899,1718047848969,-150.0,0.00029384,2]
[328993901,1718047848979,-22025.066,0.00029387,2]
[328993903,1718047848989,-19658.18789451,0.00029387,2]
[328993906,1718047849003,-1138.18072319,0.00029387,2]
[328993909,1718047849023,-2403.57912576,0.00029387,2]
[328993911,1718047849034,-5568.16915654,0.00029387,2]
[328993913,1718047849044,-172.6273007,0.00029388,2]
[328993915,1718047849054,-6001.56361188,0.00029388,2]
[328993917,1718047849067,-895.73293621,0.00029388,2]
[328994644,1718048171340,-269.27123607,0.00013855,2]
[328994645,1718048171367,-429.78706435,0.00013855,2]
[328994646,1718048171397,-1067.75598538,0.00013855,2]
[328994647,1718048171426,-235.24928445,0.00013856,2]
[328994648,1718048171783,155.0,0.00013855,2]
[328994655,1718048260357,172.75,0.00013687,2]
[328994661,1718048331297,-300.0,0.00013982,2]
[328994662,1718048331328,-4291.83751585,0.00013983,2]
[328994663,1718048331516,-5078.3489139,0.00013983,2]
[328994669,1718048947366,-2368.99633201,0.00011299,2]
[328994670,1718048947390,-436.61426308,0.000113,2]
[328994671,1718048947415,-161.67133303,0.00011301,2]
[328994672,1718048947438,-72.33016195,0.00011401,2]
[328994673,1718048951278,-100.41983805,0.00011401,2]
[328994674,1718048951303,-599.49981502,0.00012441,2]
[328994675,1718048953135,-358.86237888,0.00011201,2]
[328994676,1718048953161,-2622.27042112,0.00011298,2]
[328994677,1718048954185,-5733.48824684,0.00011298,2]
[328994678,1718048963137,-65.75001948,0.00011298,2]
[328994679,1718048963160,-37.50018498,0.00012441,2]
[328994680,1718048963189,-9221.0951137,0.00012541,2]
[328994681,1718048963213,-20.40486976,0.00012542,2]
[328994682,1718048966126,-279.59513024,0.00012542,2]
[328994683,1718048966151,-120.40486976,0.00012543,2]
[328994685,1718049033223,-942.35655589,0.00012542,2]
[328994686,1718049033235,-57.83513024,0.00012543,2]
[328994687,1718049033244,-150.0,0.00012949,2]
[328994688,1718049033254,-416.33,0.00012953,2]
[328994690,1718049033264,-499.99,0.00012953,2]
[328994692,1718049033274,-250.0,0.00013485,2]
[328994693,1718049033284,-1383.53,0.00013485,2]
[328994695,1718049033295,-158.12,0.00013699,2]
[328994696,1718049033305,-400.0,0.000139,5]
[328994697,1718049033315,-245.74253613,0.000139,2]
[328994698,1718049033325,-150.0,0.00013945,2]
[328994699,1718049033336,-620.58593424,0.00013983,2]
[328994700,1718049033346,-4037.16456731,0.00013985,2]
[328994701,1718049033355,-173.46800498,0.00013989,2]
[328994702,1718049033365,-1392.58693338,0.0001399,2]
[328994703,1718049033375,-151.52,0.0001399,2]
[328994704,1718049033385,-625.39790229,0.00013996,2]
[328994705,1718049033395,-155.0,0.00013996,2]
[328994706,1718049033404,-427.63141184,0.00013996,2]
[328994707,1718049033414,-400.0,0.00013996,2]
[328994708,1718049033424,-460.22482019,0.00013996,2]
[328994709,1718049033433,-269.12813727,0.00013996,2]
[328994710,1718049033443,-217.36329428,0.00013996,2]
[328994711,1718049033452,-438.8012752,0.00013996,2]
[328994712,1718049033462,-162.09900129,0.00013996,2]
[328994713,1718049033472,-490.61954782,0.00013996,2]
[328994714,1718049033487,-268.74584708,0.00013996,2]
[328994715,1718049033497,-236.22454519,0.00013996,2]
[328994716,1718049033506,-325.41430204,0.00013996,2]
[328994717,1718049033516,-2954.33079891,0.00013996,2]
[328994718,1718049033527,-1494.78113194,0.00013996,2]
[328994719,1718049033536,-155.0,0.00013997,2]
[328994720,1718049033546,-4284.86111154,0.00013997,2]
[328994721,1718049033555,-1012.30856095,0.00013997,2]
[328994722,1718049033567,-8323.77725992,0.00013998,2]
[328994723,1718049034340,-8670.85516071,0.00013998,2]
[328994724,1718049034351,-1969.36805987,0.00013998,2]
[328994725,1718049034361,-539.17664531,0.00013998,2]
[328994726,1718049034370,-789.85625231,0.00013998,2]
[328994727,1718049034380,-192.18649808,0.00013998,2]
[328994728,1718049034389,-227764.0616464,0.00013999,2]
[328994729,1718049034401,-900.37502554,0.00013999,2]
[328994730,1718049034413,-696.77431602,0.00013999,2]
[328994731,1718049034435,-452.75892829,0.00013999,2]
[328994732,1718049034447,-2122.6647701,0.00013999,2]
[328994733,1718049034458,-689.30241408,0.00013999,2]
[328994734,1718049034469,-765.29022052,0.00013999,2]
[328994735,1718049034486,-178057.66543741,0.00013999,2]
[328994736,1718049034497,-650.01339646,0.00013999,2]
[328994737,1718049035160,-448.12958754,0.00013999,2]
[328994739,1718049035172,-7450.39419363,0.00013999,2]
[328994771,1718049039515,-319.3515,0.00013999,2]
[328994772,1718049039529,-1658.09113468,0.00013999,2]
[328994773,1718049039542,-1710.0,0.00013999,2]
[328994774,1718049039554,-15626.23100866,0.00013999,2]
[328994775,1718049039568,-977.69249947,0.00013999,2]
[328994776,1718049039580,-708.7166173,0.00013999,2]
[328994777,1718049040006,-473.3383626,0.00013999,2]
[328995209,1718049045497,-283.49017751,0.00013999,2]
[328995210,1718049045509,-1377.3667903,0.00013999,2]
[328995274,1718049172742,200.0,0.0001,3]
[328995277,1718049212071,831.76774777,0.00025,30]
[328995278,1718049212587,153.31,0.00010545,2]
[328995280,1718049271542,521.46,0.00010971,2]
[328995281,1718049464951,575.21499046,0.00012331,7]
[328995282,1718049576779,-436.61426308,0.00012079,2]
[328995283,1718049576802,-625.85456106,0.0001208,2]
[328995284,1718049576825,-719.4340817,0.0001208,2]
[328995285,1718049576848,-7543.72254498,0.0001208,2]
[328995286,1718049576872,-2350.65016854,0.0001208,2]
[328995287,1718049576898,-2138.20030163,0.00012081,2]
[328995288,1718049576924,-2336.78675648,0.00012082,2]
[328995289,1718049576947,-1219.2104629,0.00012082,2]
[328995290,1718049576970,-4291.83751585,0.00012082,2]
[328995291,1718049576992,-1392.58693338,0.00012083,2]
[328995292,1718049577014,-2612.62805845,0.00012084,2]
[328995293,1718049577036,-733.86039657,0.00012162,2]
[328995294,1718049577058,-1852.42,0.00012205,2]
[328995295,1718049577082,-300.0,0.00012247,2]
[328995296,1718049577104,-598.36,0.00012249,2]
[328995297,1718049577126,-400.0,0.00012262,2]
[328995298,1718049577150,-1280.15,0.00012265,2]
[328995299,1718049577174,-1528.47,0.0001228,2]
[328995300,1718049577197,-1012.0,0.00012334,2]
[328995301,1718049577220,-150.0,0.00012434,2]
[328995302,1718049577244,-233.93,0.00012444,2]
[328995303,1718049577270,-29503.28395538,0.00012456,2]
[328995304,1718049641296,661.22,0.00010959,2]
[328995305,1718049827534,153.31,9.21e-05,2]
[328995306,1718049923132,518.7,9.381e-05,2]
[328995307,1718050035149,1000.0,0.00010737,2]
[328995308,1718050047159,-300.0,0.00011156,2]
[328995309,1718050047188,-719.4340817,0.00011157,2]
[328995310,1718050047212,-1392.58693338,0.00011157,2]
[328995311,1718050047235,-1151.79747046,0.00011157,2]
[328995312,1718050061647,390.5,0.00010836,2]
[328995313,1718050151174,-971.753933,0.00011155,2]
[328995314,1718050151199,-150.0,0.00011155,2]
[328995315,1718050151223,-9221.0951137,0.00011156,2]
[328995316,1718050151249,-6391.92507452,0.00011157,2]
[328995317,1718050151279,-930.36043438,0.00011158,2]
[328995318,1718050151303,-250.0,0.00011159,2]
[328995319,1718050151328,-372.1,0.00011162,2]
[328995320,1718050151353,-372.1,0.00011192,2]
[328995321,1718050151378,-3136.51,0.00011207,2]
[328995322,1718050151403,-372.1,0.00011223,2]
[328995323,1718050151428,-372.1,0.00011254,2]
[328995324,1718050151452,-224.99,0.00011254,2]
[328995325,1718050151477,-234.98,0.00011254,2]
[328995326,1718050151501,-372.1,0.00011284,2]
[328995327,1718050151532,-372.1,0.00011315,2]
[328995328,1718050151557,-372.1,0.00011345,2]
[328995329,1718050151580,-200.0,0.00011349,2]
[328995330,1718050151605,-372.1,0.00011376,2]
[328995331,1718050151630,-372.1,0.00011407,2]
[328995332,1718050151653,-372.1,0.00011437,2]
[328995333,1718050151895,-5585.77,0.00011455,2]
[328995334,1718050151921,-372.1,0.00011468,2]
[328995335,1718050151947,-372.1,0.00011498,2]
[328995336,1718050151970,-215.82,0.00011512,2]
[328995337,1718050151993,-912.78,0.0001152,2]
[328995338,1718050152021,-372.1,0.00011529,2]
[328995339,1718050152043,-2334.16,0.00011545,2]
[328995340,1718050152067,-372.1,0.0001156,2]
[328995341,1718050152091,-297.17,0.00011578,2]
[328995342,1718050152113,-794.91,0.00011581,2]
[328995343,1718050152137,-372.1,0.0001159,2]
[328995344,1718050152160,-372.1,0.00011621,2]
[328995345,1718050152183,-500.0,0.00011638,2]
[328995346,1718050152208,-518.7,0.00011645,2]
[328995347,1718050152232,-372.1,0.00011651,2]
[328995348,1718050152259,-372.1,0.00011682,2]
[328995349,1718050152287,-372.1,0.00011713,2]
[328995350,1718050152312,-372.1,0.00011743,2]
[328995351,1718050152337,-1101.00056865,0.00012076,2]
[328995352,1718050152361,-400.0,0.00012078,2]
[328995353,1718050152388,-1000.0,0.00012079,2]
[328995354,1718050152413,-1303.25501623,0.00012084,2]
[328995355,1718050152438,-1104.77,0.00012113,2]
[328995356,1718050152462,-210.0,0.0001227,2]
[328995357,1718050152489,-708.54,0.00012381,2]
[328995358,1718050152513,-176.75608764,0.00012447,2]
[328995359,1718050152542,-736.92486621,0.00012454,2]
[328995360,1718050152566,-453.69485246,0.00012454,2]
[328995361,1718050152592,-473.20597906,0.00012454,2]
[328995362,1718050152617,-1147.06403151,0.00012454,2]
[328995363,1718050152641,-155.0,0.00012454,2]
[328995364,1718050152664,-348.80783578,0.00012454,2]
[328995365,1718050152688,-310.91940956,0.00012454,2]
[328995366,1718050152711,-199.31859489,0.00012454,2]
[328995367,1718050152735,-182.80768612,0.00012454,2]
[328995368,1718050152759,-600.97838434,0.00012455,2]
[328995369,1718050152785,-482.47257714,0.00012455,2]
[328995370,1718050152811,-384.88061545,0.00012455,2]
[328995371,1718050152838,-69901.40697952,0.00012456,2]
[328995372,1718050156134,-43107.17337974,0.00012456,2]
[328995373,1718050163106,-25724.213,0.00012456,2]
[328995374,1718050168128,-360.67108145,0.00012455,2]
[328995375,1718050168154,-3520.08151855,0.00012456,2]
[328995376,1718050170290,-879.0553746,0.00012455,2]
[328995377,1718050170315,-258081.3446254,0.00012456,2]
[328995378,1718050170349,-95026.24321508,0.00012456,2]
[328995379,1718050170372,-452.55518761,0.00012457,2]
[328995380,1718050170400,-499.99,0.00012457,2]
[328995381,1718050170424,-85340.32753294,0.00012457,2]